fUSD/lending_fUSD_20240104
["ID","MTS","AMOUNT","RATE_DAILY","PERIOD"]
[310132070,1704379856883,-500.0,0.0003315,2]
[310132071,1704379856893,-629.45,0.0003315,2]
[310132072,1704379856903,-500.0,0.0003315,2]
[310132073,1704379856912,-500.0,0.0003315,2]
[310132074,1704379856921,-500.0,0.0003315,2]
[310132075,1704379856930,-500.0,0.0003315,2]
[310132076,1704379856940,-500.0,0.0003315,2]
[310132077,1704379856950,-567.28325995,0.0003315,2]
[310132078,1704379856961,-500.0,0.0003315,7]
[310132079,1704379856970,-500.0,0.0003315,2]
[310132080,1704379856979,-500.0,0.0003315,2]
[310132081,1704379856991,-500.0,0.0003315,2]
[310132082,1704379857000,-974.59,0.0003315,2]
[310132083,1704379857010,-863.85,0.0003315,2]
[310132084,1704379857020,-618.01417252,0.0003315,2]
[310132085,1704379857030,-500.0,0.0003315,2]
[310132086,1704379857040,-500.0,0.0003315,2]
[310132087,1704379857050,-500.0,0.0003315,2]
[310132088,1704379857060,-500.0,0.0003315,2]
[310132089,1704379857070,-725.52,0.0003315,2]
[310132090,1704379857080,-572.88,0.0003315,2]
[310132091,1704379857089,-500.0,0.0003315,2]
[310132092,1704379857099,-1774.19,0.0003315,2]
[310132093,1704379857109,-512.8400166,0.0003315,2]
[310132094,1704379857118,-1363.67,0.0003315,2]
[310132095,1704379857128,-828.86,0.0003315,2]
[310132096,1704379857138,-524.56893651,0.0003315,2]
[310132097,1704379857147,-500.0,0.0003315,2]
[310132098,1704379857157,-526.7404072,0.0003315,2]
[310132099,1704379857166,-500.0,0.0003315,2]
[310132100,1704379857176,-500.0,0.0003315,2]
[310132101,1704379857185,-500.0,0.0003315,2]
[310132102,1704379857195,-500.0,0.0003315,2]
[310132103,1704379857207,-1081.68,0.0003315,2]
[310132104,1704379857217,-621.0,0.0003315,2]
[310132105,1704379857227,-765.16,0.0003315,2]
[310132106,1704379857240,-500.0,0.0003315,2]
[310132107,1704379857249,-500.0,0.0003315,2]
[310132108,1704379857259,-500.0,0.0003315,2]
[310132109,1704379857268,-500.0,0.0003315,2]
[310132110,1704379857278,-500.0,0.0003315,2]
[310132111,1704379857287,-500.0,0.0003315,2]
[310132112,1704379857297,-500.0,0.0003315,2]
[310132113,1704379857306,-500.0,0.0003315,2]
[310132114,1704379857315,-500.0,0.0003315,2]
[310132115,1704379857325,-500.0,0.0003315,2]
[310132116,1704379857337,-500.0,0.0003315,2]
[310132117,1704379857347,-554.15,0.0003315,2]
[310132118,1704379857357,-500.0,0.0003315,2]
[310132119,1704379857367,-500.0,0.0003315,2]
[310132120,1704379857377,-500.0,0.0003315,2]
[310132121,1704379857387,-500.0,0.0003315,2]
[310132122,1704379857396,-633.70834289,0.0003315,2]
[310132123,1704379857406,-1343.23,0.0003315,2]
[310132124,1704379857416,-500.0,0.0003315,2]
[310132125,1704379857428,-500.0,0.0003315,2]
[310132126,1704379857438,-500.0,0.0003315,2]
[310132127,1704379857447,-500.0,0.0003315,2]
[310132128,1704379857457,-1921.23,0.0003315,2]
[310132129,1704379857466,-1082.21,0.0003315,2]
[310132130,1704379857475,-514.34,0.0003315,2]
[310132131,1704379857485,-515.62727454,0.0003315,2]
[310132132,1704379857494,-496.70372549,0.0003315,2]
[310132133,1704379857503,-500.0,0.0003315,2]
[310132134,1704379857514,-500.0,0.0003315,2]
[310132135,1704379857524,-500.0,0.0003315,2]
[310132136,1704379857534,-500.0,0.0003315,2]
[310132137,1704379857544,-500.0,0.0003315,2]
[310132138,1704379857554,-500.0,0.0003315,2]
[310132139,1704379857564,-500.0,0.0003315,2]
[310132140,1704379857573,-500.0,0.0003315,2]
[310132141,1704379857583,-500.0,0.0003315,2]
[310132142,1704379857592,-500.0,0.0003315,2]
[310132143,1704379857603,-500.0,0.0003315,2]
[310132144,1704379857613,-526.76380522,0.0003315,2]
[310132145,1704379857624,-500.0,0.0003315,2]
[310132146,1704379857635,-293.25,0.0003315,2]
[310132147,1704379857644,-377.57863429,0.0003315,2]
[310132148,1704379857655,-560.5,0.0003315,2]
[310132149,1704379857664,-500.76,0.0003315,2]
[310132150,1704379857674,-500.0,0.0003315,2]
[310132151,1704379857683,-500.0,0.0003315,2]
[310132152,1704379857692,-500.0,0.0003315,2]
[310132153,1704379857704,-500.0,0.0003315,2]
[310132154,1704379857713,-500.0,0.0003315,2]
[310132155,1704379857724,-500.0,0.0003315,2]
[310132156,1704379857735,-500.0,0.0003315,2]
[310132157,1704379857744,-747.05,0.0003315,2]
[310132158,1704379857755,-598.02,0.0003315,2]
[310132159,1704379857765,-648.99454395,0.0003315,2]
[310132160,1704379857775,-500.0,0.0003315,2]
[310132161,1704379857785,-154.76482277,0.0003315,2]
[310132162,1704379857795,-956.94,0.0003315,2]
[310132163,1704379857804,-325.69460885,0.0003315,2]
[310132164,1704379857814,-900.32,0.0003315,2]
[310132165,1704379857824,-537.89573786,0.0003315,2]
[310132166,1704379857833,-500.0,0.0003315,2]
[310132167,1704379857843,-500.0,0.0003315,2]
[310132168,1704379857852,-500.0,0.0003315,2]
[310132169,1704379857861,-500.0,0.0003315,2]
[310132170,1704379857871,-508.24,0.0003315,2]
[310132171,1704379857880,-674.57,0.0003315,2]
[310132172,1704379857890,-389.34550897,0.0003315,2]
[310132173,1704379857899,-500.0,0.0003315,2]
[310132174,1704379857909,-500.0,0.0003315,2]
[310132175,1704379857918,-500.0,0.0003315,2]
[310132176,1704379857927,-500.0,0.0003315,2]
[310132177,1704379857936,-500.0,0.0003315,2]
[310132178,1704379857947,-500.0,0.0003315,2]
[310132179,1704379857957,-500.0,0.0003315,2]
[310132180,1704379857966,-500.0,0.0003315,2]
[310132181,1704379857976,-500.0,0.0003315,2]
[310132182,1704379857985,-500.0,0.0003315,2]
[310132183,1704379857995,-500.0,0.0003315,2]
[310132184,1704379858004,-500.0,0.0003315,2]
[310132185,1704379858014,-1096.25,0.0003315,2]
[310132186,1704379858024,-500.0,0.0003315,2]
[310132187,1704379858033,-500.0,0.0003315,2]
[310132188,1704379858043,-500.0,0.0003315,2]
[310132189,1704379858053,-444.01765972,0.0003315,2]
[310132190,1704379858062,-921.29,0.0003315,2]
[310132191,1704379858072,-500.0,0.0003315,2]
[310132192,1704379858081,-500.0,0.0003315,2]
[310132193,1704379858091,-592.96200023,0.0003315,2]
[310132194,1704379858100,-555.3,0.0003315,2]
[310132195,1704379858110,-500.0,0.0003315,2]
[310132196,1704379858119,-500.0,0.0003315,2]
[310132197,1704379858129,-500.0,0.0003315,2]
[310132198,1704379858138,-2229.59,0.0003315,2]
[310132199,1704379858148,-543.17,0.0003315,2]
[310132200,1704379858157,-11597.14,0.0003315,2]
[310132201,1704379858167,-500.0,0.0003315,2]
[310132202,1704379858177,-500.0,0.0003315,2]
[310132203,1704379858187,-500.0,0.0003315,2]
[310132204,1704379858196,-500.0,0.0003315,2]
[310132205,1704379858207,-1426.32,0.0003315,2]
[310132206,1704379858215,-656.25,0.0003315,2]
[310132207,1704379858228,-500.0,0.0003315,2]
[310132208,1704379858238,-500.0,0.0003315,2]
[310132209,1704379858247,-500.0,0.0003315,2]
[310132210,1704379858256,-500.0,0.0003315,2]
[310132211,1704379858266,-500.0,0.0003315,2]
[310132212,1704379858276,-500.0,0.0003315,2]
[310132213,1704379858285,-500.0,0.0003315,2]
[310132214,1704379858295,-500.0,0.0003315,2]
[310132215,1704379858304,-500.0,0.0003315,2]
[310132216,1704379858314,-500.0,0.0003315,2]
[310132217,1704379858324,-500.0,0.0003315,2]
[310132218,1704379858333,-500.0,0.0003315,2]
[310132219,1704379858343,-500.0,0.0003315,2]
[310132220,1704379858353,-975.89,0.0003315,2]
[310132221,1704379858363,-500.0,0.0003315,2]
[310132222,1704379858374,-500.0,0.0003315,2]
[310132223,1704379858384,-4656.18,0.0003315,2]
[310132224,1704379858393,-1479.88,0.0003315,2]
[310132225,1704379858403,-500.0,0.0003315,2]
[310132226,1704379858412,-500.0,0.0003315,2]
[310132227,1704379858422,-500.0,0.0003315,2]
[310132228,1704379858490,-366.13590831,0.0003315,2]
[310132229,1704379858500,-160.94549764,0.0003315,2]
[310132230,1704379858509,-500.0,0.0003315,2]
[310132231,1704379858519,-500.0,0.0003315,2]
[310132232,1704379858528,-853.53,0.0003315,2]
[310132233,1704379858538,-500.0,0.0003315,2]
[310132234,1704379858547,-500.0,0.0003315,2]
[310132235,1704379858556,-500.0,0.0003315,2]
[310132236,1704379858566,-5589.01,0.0003315,2]
[310132237,1704379858575,-500.0,0.0003315,2]
[310132238,1704379858584,-500.0,0.0003315,2]
[310132239,1704379858594,-2629.66,0.0003315,2]
[310132240,1704379858603,-500.0,0.0003315,2]
[310132241,1704379858613,-500.0,0.0003315,2]
[310132242,1704379858623,-943.4,0.0003315,2]
[310132243,1704379858632,-1350.66,0.0003315,2]
[310132244,1704379858642,-979.91,0.0003315,2]
[310132245,1704379858651,-500.0,0.0003315,2]
[310132246,1704379858660,-582.67008895,0.0003315,2]
[310132247,1704379858670,-762.49,0.0003315,2]
[310132248,1704379858679,-3743.26,0.0003315,2]
[310132249,1704379858689,-500.0,0.0003315,2]
[310132250,1704379858699,-843.44,0.0003315,2]
[310132251,1704379858710,-500.0,0.0003315,2]
[310132252,1704379858719,-500.0,0.0003315,2]
[310132253,1704379858728,-500.0,0.0003315,2]
[310132254,1704379858738,-500.0,0.0003315,2]
[310132255,1704379858747,-3435.39,0.0003315,2]
[310132256,1704379858757,-1798.08,0.0003315,2]
[310132257,1704379858766,-960.59,0.0003315,2]
[310132258,1704379858775,-500.0,0.0003315,2]
[310132259,1704379858784,-981.13,0.0003315,2]
[310132260,1704379858793,-500.0,0.0003315,2]
[310132261,1704379858803,-500.0,0.0003315,2]
[310132262,1704379858812,-11476.76,0.0003315,2]
[310132263,1704379858821,-500.0,0.0003315,2]
[310132264,1704379858830,-6221.49,0.0003315,2]
[310132265,1704379858839,-500.0,0.0003315,2]
[310132266,1704379858849,-500.0,0.0003315,2]
[310132267,1704379858858,-500.0,0.0003315,2]
[310132268,1704379858867,-500.0,0.0003315,2]
[310132269,1704379858876,-7112.65,0.0003315,2]
[310132270,1704379858885,-500.0,0.0003315,2]
[310132271,1704379858895,-808.53,0.0003315,2]
[310132272,1704379858904,-1507.3,0.0003315,2]
[310132273,1704379858914,-1094.55,0.0003315,2]
[310132274,1704379858923,-500.0,0.0003315,2]
[310132275,1704379858933,-3044.9,0.0003315,2]
[310132276,1704379858942,-1880.68,0.0003315,2]
[310132277,1704379858953,-500.0,0.0003315,2]
[310132278,1704379858962,-1520.93,0.0003315,2]
[310132279,1704379858971,-500.0,0.0003315,2]
[310132280,1704379858981,-714.53,0.0003315,2]
[310132281,1704379858990,-500.0,0.0003315,2]
[310132282,1704379858999,-500.0,0.0003315,2]
[310132283,1704379859009,-500.0,0.0003315,2]
[310132284,1704379859018,-500.0,0.0003315,2]
[310132285,1704379859029,-1046.93,0.0003315,2]
[310132286,1704379859038,-709.58,0.0003315,2]
[310132287,1704379859048,-982.36,0.0003315,2]
[310132288,1704379859059,-500.0,0.0003315,2]
[310132289,1704379859068,-3659.95,0.0003315,2]
[310132290,1704379859078,-500.0,0.0003315,2]
[310132291,1704379859088,-500.0,0.0003315,2]
[310132292,1704379859099,-524.34,0.0003315,2]
[310132293,1704379859109,-1004.62,0.0003315,2]
[310132294,1704379859118,-14819.02,0.0003315,2]
[310132295,1704379859128,-1526.09,0.0003315,2]
[310132296,1704379859137,-500.0,0.0003315,2]
[310132297,1704379859147,-1505.64,0.0003315,2]
[310132298,1704379859156,-559.53230033,0.0003315,2]
[310132299,1704379859166,-934.38,0.0003315,2]
[310132300,1704379859176,-500.0,0.0003315,2]
[310132301,1704379859185,-500.0,0.0003315,2]
[310132302,1704379859195,-1050.36,0.0003315,2]
[310132303,1704379859205,-500.0,0.0003315,2]
[310132304,1704379859215,-450.59655578,0.0003315,2]
[310132305,1704379859228,-500.0,0.0003315,2]
[310132306,1704379859238,-500.0,0.0003315,2]
[310132307,1704379859248,-500.0,0.0003315,2]
[310132308,1704379859258,-500.0,0.0003315,2]
[310132309,1704379859267,-500.0,0.0003315,2]
[310132310,1704379859276,-5243.39,0.0003315,2]
[310132311,1704379859287,-524.12451419,0.0003315,2]
[310132312,1704379859296,-2099.31,0.0003315,2]
[310132313,1704379859305,-500.0,0.0003315,2]
[310132314,1704379859315,-614.39,0.0003315,2]
[310132315,1704379859325,-500.0,0.0003315,2]
[310132316,1704379859334,-500.0,0.0003315,2]
[310132317,1704379859345,-560.17,0.0003315,2]
[310132318,1704379859355,-500.0,0.0003315,2]
[310132319,1704379859364,-500.0,0.0003315,2]
[310132320,1704379859373,-2632.74,0.0003315,2]
[310132321,1704379859384,-500.0,0.0003315,2]
[310132322,1704379859393,-2658.03,0.0003315,2]
[310132323,1704379859403,-991.74,0.0003315,2]
[310132324,1704379859413,-500.0,0.0003315,2]
[310132325,1704379859422,-676.47,0.0003315,2]
[310132326,1704379859431,-500.0,0.0003315,2]
[310132327,1704379859444,-791.89,0.0003315,2]
[310132328,1704379859455,-500.0,0.0003315,2]
[310132329,1704379859463,-500.0,0.0003315,2]
[310132330,1704379859472,-500.0,0.0003315,2]
[310132331,1704379859483,-500.0,0.0003315,2]
[310132332,1704379859492,-7185.58,0.0003315,2]
[310132333,1704379859501,-602.38,0.0003315,2]
[310132334,1704379859509,-500.0,0.0003315,2]
[310132335,1704379859516,-565.11,0.0003315,2]
[310132336,1704379859524,-500.0,0.0003315,2]
[310132337,1704379859531,-793.66,0.0003315,2]
[310132338,1704379859539,-24948.91,0.0003315,2]
[310132339,1704379859547,-500.0,0.0003315,2]
[310132340,1704379859555,-500.0,0.0003315,2]
[310132341,1704379859563,-673.61,0.0003315,2]
[310132342,1704379859572,-500.0,0.0003315,2]
[310132343,1704379859581,-792.12,0.0003315,2]
[310132344,1704379859590,-1302.06,0.0003315,2]
[310132345,1704379859599,-1417.01,0.0003315,2]
[310132346,1704379859609,-8974.7,0.0003315,2]
[310132347,1704379859618,-500.0,0.0003315,2]
[310132348,1704379859627,-500.0,0.0003315,2]
[310132349,1704379859636,-604.98,0.0003315,2]
[310132350,1704379859646,-1470.26,0.0003315,2]
[310132351,1704379859655,-546.98,0.0003315,2]
[310132352,1704379859664,-500.0,0.0003315,2]
[310132353,1704379859673,-500.0,0.0003315,2]
[310132354,1704379859686,-500.0,0.0003315,2]
[310132355,1704379859696,-1575.12,0.0003315,2]
[310132356,1704379859708,-500.0,0.0003315,2]
[310132357,1704379859717,-500.0,0.0003315,2]
[310132358,1704379859727,-944.91,0.0003315,2]
[310132359,1704379859737,-500.0,0.0003315,2]
[310132360,1704379859747,-500.0,0.0003315,2]
[310132361,1704379859756,-186.2740644,0.0003315,2]
[310132362,1704379859765,-500.0,0.0003315,2]
[310132363,1704379859775,-1253.76,0.0003315,2]
[310132364,1704379859785,-500.0,0.0003315,2]
[310132365,1704379859795,-500.0,0.0003315,2]
[310132366,1704379859807,-500.0,0.0003315,2]
[310132367,1704379859817,-500.0,0.0003315,2]
[310132368,1704379859827,-451.27696595,0.0003315,2]
[310132369,1704379859836,-6159.64,0.0003315,2]
[310132370,1704379859846,-500.0,0.0003315,2]
[310132371,1704379859855,-1663.56,0.0003315,2]
[310132372,1704379859865,-200.47577374,0.0003315,2]
[310132373,1704379859875,-3912.93,0.0003315,2]
[310132374,1704379859885,-500.0,0.0003315,2]
[310132375,1704379859894,-797.64,0.0003315,2]
[310132376,1704379859903,-500.0,0.0003315,2]
[310132377,1704379859913,-500.0,0.0003315,2]
[310132378,1704379859922,-500.0,0.0003315,2]
[310132379,1704379859932,-500.0,0.0003315,2]
[310132380,1704379859942,-500.0,0.0003315,2]
[310132381,1704379859953,-1328.73,0.0003315,2]
[310132382,1704379859963,-500.0,0.0003315,2]
[310132383,1704379859973,-500.0,0.0003315,2]
[310132384,1704379859983,-1221.19,0.0003315,2]
[310132385,1704379859993,-500.0,0.0003315,2]
[310132386,1704379860002,-500.0,0.0003315,2]
[310132387,1704379860011,-8027.58,0.0003315,2]
[310132388,1704379860021,-897.24,0.0003315,2]
[310132389,1704379860030,-607.09,0.0003315,2]
[310132390,1704379860039,-776.16,0.0003315,2]
[310132391,1704379860048,-1088.44,0.0003315,2]
[310132392,1704379860058,-500.0,0.0003315,2]
[310132393,1704379860068,-792.37,0.0003315,2]
[310132394,1704379860077,-13895.34,0.0003315,2]
[310132395,1704379860086,-500.0,0.0003315,2]
[310132396,1704379860096,-1153.53,0.0003315,2]
[310132397,1704379860105,-500.0,0.0003315,2]
[310132398,1704379860115,-620.60442278,0.0003315,2]
[310132399,1704379860124,-569.73,0.0003315,2]
[310132400,1704379860133,-500.0,0.0003315,2]
[310132401,1704379860143,-725.92,0.0003315,2]
[310132402,1704379860153,-500.0,0.0003315,2]
[310132403,1704379860163,-500.0,0.0003315,2]
[310132404,1704379860172,-500.0,0.0003315,2]
[310132405,1704379860181,-824.62,0.0003315,2]
[310132406,1704379860190,-500.0,0.0003315,2]
[310132407,1704379860200,-4012.2,0.0003315,2]
[310132408,1704379860210,-690.73,0.0003315,2]
[310132409,1704379860219,-500.0,0.0003315,2]
[310132410,1704379860229,-500.0,0.0003315,2]
[310132411,1704379860239,-500.0,0.0003315,2]
[310132412,1704379860248,-500.0,0.0003315,2]
[310132413,1704379860258,-2066.06,0.0003315,2]
[310132414,1704379860267,-500.0,0.0003315,2]
[310132415,1704379860276,-155.5857721,0.0003315,2]
[310132416,1704379860286,-500.0,0.0003315,2]
[310132417,1704379860295,-500.0,0.0003315,2]
[310132418,1704379860305,-3083.56,0.0003315,2]
[310132419,1704379860314,-726.46,0.0003315,2]
[310132420,1704379860324,-674.77,0.0003315,2]
[310132421,1704379860334,-998.68,0.0003315,2]
[310132422,1704379860343,-500.0,0.0003315,2]
[310132423,1704379860353,-2984.78,0.0003315,2]
[310132424,1704379860362,-500.0,0.0003315,2]
[310132425,1704379860371,-2196.5,0.0003315,2]
[310132426,1704379860381,-745.15,0.0003315,2]
[310132427,1704379860390,-500.0,0.0003315,2]
[310132428,1704379860399,-500.0,0.0003315,2]
[310132429,1704379860408,-1113.73,0.0003315,2]
[310132430,1704379860417,-500.0,0.0003315,2]
[310132431,1704379860427,-1097.92,0.0003315,2]
[310132432,1704379860437,-777.35,0.0003315,2]
[310132433,1704379860445,-211.85525593,0.0003315,2]
[310132434,1704379860457,-632.67569318,0.0003315,2]
[310132435,1704379860466,-1211.84,0.0003315,2]
[310132436,1704379860475,-500.0,0.0003315,2]
[310132437,1704379860484,-2090.69,0.0003315,2]
[310132438,1704379860493,-500.0,0.0003315,2]
[310132439,1704379860502,-1275.77,0.0003315,2]
[310132440,1704379860511,-500.0,0.0003315,2]
[310132441,1704379860521,-2938.41,0.0003315,2]
[310132442,1704379860530,-515.0,0.0003315,2]
[310132443,1704379860539,-9328.57,0.0003315,2]
[310132444,1704379860549,-500.0,0.0003315,2]
[310132445,1704379860558,-515.28,0.0003315,2]
[310132446,1704379860568,-500.0,0.0003315,2]
[310132447,1704379860577,-1696.21,0.0003315,2]
[310132448,1704379860588,-500.0,0.0003315,2]
[310132449,1704379860597,-500.0,0.0003315,2]
[310132450,1704379860607,-516.17872672,0.0003315,2]
[310132451,1704379860617,-1158.55,0.0003315,2]
[310132452,1704379860627,-746.87,0.0003315,2]
[310132453,1704379860637,-500.0,0.0003315,2]
[310132454,1704379860647,-500.0,0.0003315,2]
[310132455,1704379860657,-500.0,0.0003315,2]
[310132456,1704379860666,-585.65,0.0003315,2]
[310132457,1704379860677,-500.0,0.0003315,2]
[310132458,1704379860688,-500.0,0.0003315,2]
[310132459,1704379860698,-1243.16,0.0003315,2]
[310132460,1704379860711,-1162.34,0.0003315,2]
[310132461,1704379860721,-500.0,0.0003315,2]
[310132462,1704379860730,-2032.71,0.0003315,2]
[310132463,1704379860740,-517.77,0.0003315,2]
[310132464,1704379860750,-500.0,0.0003315,2]
[310132465,1704379860759,-500.0,0.0003315,2]
[310132466,1704379860769,-500.0,0.0003315,2]
[310132467,1704379860779,-584.75,0.0003315,2]
[310132468,1704379860789,-806.38,0.0003315,2]
[310132469,1704379860799,-500.0,0.0003315,2]
[310132470,1704379860809,-500.0,0.0003315,2]
[310132471,1704379860818,-674.03,0.0003315,2]
[310132472,1704379860828,-500.0,0.0003315,2]
[310132473,1704379860837,-1367.76,0.0003315,2]
[310132474,1704379860847,-812.81,0.0003315,2]
[310132475,1704379860858,-1267.95,0.0003315,2]
[310132476,1704379860870,-500.0,0.0003315,2]
[310132477,1704379860880,-500.0,0.0003315,2]
[310132478,1704379860890,-500.0,0.0003315,2]
[310132479,1704379860900,-500.0,0.0003315,2]
[310132480,1704379860910,-500.0,0.0003315,2]
[310132481,1704379860920,-500.0,0.0003315,2]
[310132482,1704379860930,-2136.74,0.0003315,2]
[310132483,1704379860940,-470.29373619,0.0003315,2]
[310132484,1704379860951,-500.0,0.0003315,2]
[310132485,1704379860962,-502.76327618,0.0003315,2]
[310132486,1704379860971,-1613.02,0.0003315,2]
[310132487,1704379860981,-500.0,0.0003315,2]
[310132488,1704379860991,-921.0,0.0003315,2]
[310132489,1704379861001,-500.0,0.0003315,2]
[310132490,1704379861011,-6778.32,0.0003315,2]
[310132491,1704379861020,-500.0,0.0003315,2]
[310132492,1704379861030,-525.75175984,0.0003315,2]
[310132493,1704379861040,-595.36492255,0.0003315,2]
[310132494,1704379861051,-500.0,0.0003315,2]
[310132495,1704379861061,-5937.95,0.0003315,2]
[310132496,1704379861071,-564.94,0.0003315,2]
[310132497,1704379861080,-605.3,0.0003315,2]
[310132498,1704379861091,-767.99,0.0003315,2]
[310132499,1704379861100,-1863.72,0.0003315,2]
[310132500,1704379861111,-500.0,0.0003315,2]
[310132501,1704379861121,-1006.87,0.0003315,2]
[310132502,1704379861131,-500.0,0.0003315,2]
[310132503,1704379861142,-363.26389222,0.0003315,2]
[310132504,1704379861152,-2780.42,0.0003315,2]
[310132505,1704379861162,-3378.06,0.0003315,2]
[310132506,1704379861173,-2104.92,0.0003315,2]
[310132507,1704379861182,-675.56,0.0003315,2]
[310132508,1704379861193,-500.0,0.0003315,2]
[310132509,1704379861204,-500.0,0.0003315,2]
[310132510,1704379861214,-500.0,0.0003315,2]
[310132511,1704379861225,-1448.56,0.0003315,2]
[310132512,1704379861234,-841.6,0.0003315,2]
[310132513,1704379861247,-500.0,0.0003315,2]
[310132514,1704379861257,-500.0,0.0003315,2]
[310132515,1704379861266,-500.0,0.0003315,2]
[310132516,1704379861276,-561.79,0.0003315,2]
[310132517,1704379861286,-628.57,0.0003315,2]
[310132518,1704379861295,-958.91,0.0003315,2]
[310132519,1704379861305,-500.0,0.0003315,2]
[310132520,1704379861315,-543.21,0.0003315,2]
[310132521,1704379861324,-500.0,0.0003315,2]
[310132522,1704379861334,-523.04217266,0.0003315,2]
[310132523,1704379861344,-500.0,0.0003315,2]
[310132524,1704379861354,-500.0,0.0003315,2]
[310132525,1704379861363,-500.0,0.0003315,2]
[310132526,1704379861373,-938.81,0.0003315,2]
[310132527,1704379861382,-500.0,0.0003315,2]
[310132528,1704379861392,-500.0,0.0003315,2]
[310132529,1704379861402,-887.96,0.0003315,2]
[310132530,1704379861413,-574.22,0.0003315,2]
[310132531,1704379861423,-465.02989618,0.0003315,2]
[310132532,1704379861434,-500.0,0.0003315,2]
[310132533,1704379861444,-3849.25,0.0003315,2]
[310132534,1704379861454,-500.0,0.0003315,2]
[310132535,1704379861464,-500.0,0.0003315,2]
[310132536,1704379861474,-1711.45,0.0003315,2]
[310132537,1704379861484,-500.0,0.0003315,2]
[310132538,1704379861493,-10588.74,0.0003315,2]
[310132539,1704379861503,-500.0,0.0003315,2]
[310132540,1704379861513,-500.0,0.0003315,2]
[310132541,1704379861523,-500.0,0.0003315,2]
[310132542,1704379861533,-758.93,0.0003315,2]
[310132543,1704379861542,-606.27,0.0003315,2]
[310132544,1704379861552,-500.0,0.0003315,2]
[310132545,1704379861562,-500.0,0.0003315,2]
[310132546,1704379861572,-500.0,0.0003315,2]
[310132547,1704379861581,-606.01,0.0003315,2]
[310132548,1704379861591,-1198.57,0.0003315,2]
[310132549,1704379861601,-5079.07,0.0003315,2]
[310132550,1704379861611,-500.0,0.0003315,2]
[310132551,1704379861621,-500.0,0.0003315,2]
[310132552,1704379861632,-939.72,0.0003315,2]
[310132553,1704379861641,-500.0,0.0003315,2]
[310132554,1704379861651,-1196.63,0.0003315,2]
[310132555,1704379861661,-500.0,0.0003315,2]
[310132556,1704379861671,-1608.64,0.0003315,2]
[310132557,1704379861680,-500.0,0.0003315,2]
[310132558,1704379861691,-540.84,0.0003315,2]
[310132559,1704379861700,-3816.66,0.0003315,2]
[310132560,1704379861712,-555.32,0.0003315,2]
[310132561,1704379861722,-598.45,0.0003315,2]
[310132562,1704379861733,-500.0,0.0003315,2]
[310132563,1704379861742,-500.0,0.0003315,2]
[310132564,1704379861752,-912.45,0.0003315,2]
[310132565,1704379861762,-500.0,0.0003315,2]
[310132566,1704379861771,-500.0,0.0003315,2]
[310132567,1704379861782,-500.0,0.0003315,2]
[310132568,1704379861792,-1611.63,0.0003315,2]
[310132569,1704379861801,-1094.2,0.0003315,2]